[Event "Fagernes GM Open Autumn 2024"]
[Site "Fagernes"]
[Date "2024.10.09"]
[Round "4.20"]
[White "Laddha, Shubh Jayesh"]
[Black "Advaitt Srikant Koduri"]
[Result "1-0"]
[ECO "B76"]
[WhiteElo "2308"]
[BlackElo "2162"]
[Annotator "RC"]
[PlyCount "103"]
[EventDate "2024.10.03"]
[EventType "swiss"]
[EventCountry "NOR"]
[SourceTitle "playchess.com"]
[Source "ChessBase"]
[SourceQuality "1"]
[TimeControl "40/6000:2400+30"]

1. e4 {[%emt 0:00:38]} c5 {[%emt 0:00:00]} 2. Nf3 {[%emt 0:00:00]} d6 {[%emt 0:00:00]} 3. d4 {[%emt 0:00:00]} cxd4 {[%emt 0:00:00]} 4. Nxd4 {[%emt 0:00:00]} Nf6 {[%emt 0:00:00]} 5. Nc3 {[%emt 0:00:00]} g6 {[%emt 0:00:00]} 6. Be3 {[%emt 0:00:00]} Bg7 {[%emt 0:00:00]} 7. f3 {[%emt 0:00:00]} O-O {[%emt 0:00:00]} 8. Qd2 {[%emt 0:00:00]} Nc6 {[%emt 0:00:00]} 9. O-O-O {[%emt 0:00:00]} d5 {[%emt 0:00:00]} 10. exd5 {[%emt 0:00:00]} Nxd5 {[%emt 0:00:00]} 11. Nxc6 {[%emt 0:00:00]} bxc6 {[%emt 0:00:00]} 12. Bd4 {[%emt 0:00:00]} Bxd4 {[%emt 0:00:00]} 13. Qxd4 {[%emt 0:00:00]} Qb6 {[%emt 0:00:00]} 14. Na4 {[%emt 0:00:00]} Qc7 {[%emt 0:00:00]} 15. Bc4 {[%emt 0:00:00]} Rd8 {[%emt 0:00:07]} 16. Nc5 {[%emt 0:03:42]} Bf5 {[%emt 0:00:00]} 17. Bb3 {[%emt 0:02:18]} Nf4 {[%emt 0:00:00]} 18. Qf2 {[%emt 0:01:30]} Rxd1+ {[%emt 0:01:32]} 19. Rxd1 {[%emt 0:00:00]} Rd8 {[%emt 0:00:00]} 20. Re1 {[%emt 0:00:04]} h5 {[%emt 0:00:00]} 21. g3 {[%emt 0:04:29]} Nd5 {[%emt 0:00:27]} 22. a3 {[%emt 0:04:43]} e6 {[%emt 0:01:07]} 23. Rd1 {[%emt 0:09:29]} Qe7 {[%emt 0:12:10]} 24. Ba4 {[%emt 0:13:12]} Rc8 {[%emt 0:33:19]} 25. Rd2 {[%emt 0:08:59]} Qc7 {[%emt 0:09:43]} 26. Qe2 {[%emt 0:17:34]} Qe7 {[%emt 0:07:06]} 27. Qf2 {[%emt 0:08:00]} Qc7 {[%emt 0:00:09]} 28. Bb3 {[%emt 0:00:31]} Rd8 {[%emt 0:04:30]} 29. Qd4 {[%emt 0:02:02]} e5 {[%emt 0:02:41]} 30. Qh4 {[%emt 0:02:15]} Kg7 {[%emt 0:00:57]} 31. g4 {[%emt 0:03:04]} hxg4 {[%emt 0:00:33]} 32. fxg4 {[%emt 0:00:00]} Bc8 {[%emt 0:01:29]} 33. g5 {[%emt 0:01:10]} Rh8 {[%emt 0:00:23]} 34. Qf2 {[%emt 0:00:20]} Nf4 {[%emt 0:05:14]} 35. Ne4 {[%emt 0:02:28]} Qe7 {[%emt 0:02:17]} 36. h4 {[%emt 0:02:42]} Be6 {[%emt 0:00:01]} 37. Bxe6 {[%emt 0:01:50]} Qxe6 {[%emt 0:00:00]} 38. b3 {[%emt 0:01:48]} Qg4 {[%emt 0:03:35]} 39. Kb2 {[%emt 0:02:12]} Rxh4 {[%emt 0:01:48]} 40. Qxa7 {[%emt 0:00:48]} Ne6 {[%emt 0:03:40]} 41. Nd6 {[%emt 0:15:00]} Nxg5 {[%emt 0:08:40]} 42. Ne8+ {[%emt 0:00:48]} Kh6 {[%emt 0:02:00]} 43. Qe7 {[%emt 0:03:34]} Qf4 {[%emt 0:07:22]} 44. Qf8+ {[%emt 0:02:42]} Kh5 {[%emt 0:01:07]} 45. Rg2 {[%emt 0:01:14]} Rg4 {[%emt 0:08:02]} 46. Rh2+ {[%emt 0:03:58]} Nh3 {[%emt 0:01:22]} 47. Rxh3+ {[%emt 0:00:10]} Kg5 {[%emt 0:00:04]} 48. Nd6 {[%emt 0:02:29]} Qd4+ {[%emt 0:01:39]} 49. Rc3 {[%emt 0:00:34]} f5 {[%emt 0:00:37]} 50. Nf7+ {[%emt 0:00:36]} Kf4 {[%emt 0:00:33]} 51. Qh6+ {[%emt 0:00:09]} Ke4 {[%emt 0:00:51]} 52. Qh1+ {[%emt 0:00:06]} 1-0

[Event "Fagernes GM Open Autumn 2024"]
[Site "Fagernes"]
[Date "2024.10.09"]
[Round "4.21"]
[White "Mannion, Stephen R"]
[Black "Sieber, Fiona"]
[Result "1/2-1/2"]
[ECO "B80"]
[WhiteElo "2142"]
[BlackElo "2264"]
[Annotator "RC"]
[PlyCount "40"]
[EventDate "2024.10.03"]
[EventType "swiss"]
[EventCountry "NOR"]
[SourceTitle "playchess.com"]
[Source "ChessBase"]
[SourceQuality "1"]
[TimeControl "40/6000:2400+30"]

1. e4 {[%emt 0:01:26]} c5 {[%emt 0:00:00]} 2. Nf3 {[%emt 0:00:00]} d6 {[%emt 0:00:00]} 3. d4 {[%emt 0:00:00]} cxd4 {[%emt 0:00:00]} 4. Nxd4 {[%emt 0:00:00]} Nf6 {[%emt 0:00:00]} 5. Nc3 {[%emt 0:00:00]} a6 {[%emt 0:00:00]} 6. f3 {[%emt 0:00:00]} e6 {[%emt 0:00:00]} 7. Be3 {[%emt 0:00:00]} b5 {[%emt 0:00:00]} 8. a3 {[%emt 0:00:00]} h5 {[%emt 0:00:00]} 9. Qd2 {[%emt 0:00:00]} Nbd7 {[%emt 0:00:00]} 10. O-O-O {[%emt 0:00:00]} Bb7 {[%emt 0:00:00]} 11. Kb1 {[%emt 0:00:00]} Rc8 {[%emt 0:00:00]} 12. Rg1 {[%emt 0:00:00]} Be7 {[%emt 0:00:00]} 13. Be2 {[%emt 0:00:00]} Qc7 {[%emt 0:00:00]} 14. Bg5 {[%emt 0:05:09]} Qb6 {[%emt 0:00:00]} 15. h4 {[%emt 0:11:05]} Nc5 {[%emt 0:17:47]} 16. Na2 {[%emt 0:40:29]} Ba8 {[%emt 0:07:41]} 17. Be3 {[%emt 0:04:47]} Qb8 {[%emt 0:02:19]} 18. Bg5 {[%emt 0:02:36]} Qb6 {[%emt 0:01:04]} 19. Be3 {[%emt 0:00:00]} Qb8 {[%emt 0:00:15]} 20. Bg5 {[%emt 0:00:00]} Qb6 {[%emt 0:00:33]} 1/2-1/2

[Event "Fagernes GM Open Autumn 2024"]
[Site "Fagernes"]
[Date "2024.10.09"]
[Round "4.22"]
[White "Nagare Akhilesh"]
[Black "Southcott-Moyers, Indy"]
[Result "1/2-1/2"]
[ECO "C77"]
[WhiteElo "2245"]
[BlackElo "2143"]
[Annotator "RC"]
[PlyCount "122"]
[EventDate "2024.10.03"]
[EventType "swiss"]
[EventCountry "NOR"]
[SourceTitle "playchess.com"]
[Source "ChessBase"]
[SourceQuality "1"]
[TimeControl "40/6000:2400+30"]

1. e4 {[%emt 0:00:00]} e5 {[%emt 0:00:00]} 2. Nf3 {[%emt 0:00:00]} Nc6 {[%emt 0:00:00]} 3. Bb5 {[%emt 0:00:00]} a6 {[%emt 0:00:00]} 4. Ba4 {[%emt 0:00:00]} Nf6 {[%emt 0:00:00]} 5. d3 {[%emt 0:00:00]} b5 {[%emt 0:03:56]} 6. Bb3 {[%emt 0:00:00]} Be7 {[%emt 0:00:00]} 7. a4 {[%emt 0:00:00]} Rb8 {[%emt 0:01:17]} 8. axb5 {[%emt 0:00:00]} axb5 {[%emt 0:00:00]} 9. Nc3 {[%emt 0:00:00]} d6 {[%emt 0:04:20]} 10. h3 {[%emt 0:00:00]} Be6 {[%emt 0:10:55]} 11. Nd5 {[%emt 0:00:42]} O-O {[%emt 0:10:08]} 12. c3 {[%emt 0:01:57]} Rb7 {[%emt 0:04:52]} 13. O-O {[%emt 0:12:19]} Nb8 {[%emt 0:01:53]} 14. Nxe7+ {[%emt 0:00:40]} Qxe7 {[%emt 0:00:00]} 15. Bc2 {[%emt 0:00:00]} h6 {[%emt 0:08:28]} 16. Nh2 {[%emt 0:07:15]} Nh7 {[%emt 0:05:11]} 17. f4 {[%emt 0:11:29]} f6 {[%emt 0:00:58]} 18. f5 {[%emt 0:01:15]} Bf7 {[%emt 0:00:00]} 19. Be3 {[%emt 0:02:09]} Rd8 {[%emt 0:04:09]} 20. Qg4 {[%emt 0:03:21]} Kh8 {[%emt 0:00:23]} 21. Ra8 {[%emt 0:01:00]} Nc6 {[%emt 0:05:15]} 22. Rxd8+ {[%emt 0:04:31]} Qxd8 {[%emt 0:02:18]} 23. Ra1 {[%emt 0:01:58]} b4 {[%emt 0:03:25]} 24. Ba4 {[%emt 0:01:04]} Ne7 {[%emt 0:00:26]} 25. c4 {[%emt 0:01:06]} c5 {[%emt 0:01:59]} 26. Bb5 {[%emt 0:01:38]} Be8 {[%emt 0:01:32]} 27. Bxe8 {[%emt 0:00:00]} Qxe8 {[%emt 0:00:00]} 28. Ra6 {[%emt 0:00:04]} Nc8 {[%emt 0:05:22]} 29. Qd1 {[%emt 0:04:41]} Ra7 {[%emt 0:02:37]} 30. Qa1 {[%emt 0:01:51]} Qd7 {[%emt 0:01:06]} 31. Qa5 {[%emt 0:00:00]} Rxa6 {[%emt 0:00:00]} 32. Qxa6 {[%emt 0:00:00]} Nf8 {[%emt 0:00:18]} 33. Nf3 {[%emt 0:02:55]} Qc7 {[%emt 0:03:41]} 34. Nh4 {[%emt 0:00:09]} Kh7 {[%emt 0:00:43]} 35. Kh2 {[%emt 0:04:55]} Ne7 {[%emt 0:01:49]} 36. Qa4 {[%emt 0:01:38]} Qd7 {[%emt 0:00:45]} 37. Qa5 {[%emt 0:00:00]} Qc8 {[%emt 0:00:35]} 38. Nf3 {[%emt 0:00:00]} Nd7 {[%emt 0:03:01]} 39. g4 {[%emt 0:00:49]} Nc6 {[%emt 0:01:08]} 40. Qa4 {[%emt 0:00:42]} Nd8 {[%emt 0:01:53]} 41. Nh4 {[%emt 0:42:58]} Qc6 {[%emt 0:42:36]} 42. Qa5 {[%emt 0:02:20]} Qb6 {[%emt 0:00:00]} 43. Qa8 {[%emt 0:00:00]} Nb8 {[%emt 0:00:00]} 44. Ng6 {[%emt 0:00:00]} Ndc6 {[%emt 0:00:00]} 45. Nf8+ {[%emt 0:00:00]} Kg8 {[%emt 0:00:00]} 46. Nd7 {[%emt 0:00:00]} Qa6 {[%emt 0:00:00]} 47. Qxa6 {[%emt 0:00:00]} Nxa6 {[%emt 0:00:00]} 48. Nb6 {[%emt 0:00:00]} Nc7 {[%emt 0:00:00]} 49. Nc8 {[%emt 0:00:00]} Ne8 {[%emt 0:00:00]} 50. Kg3 {[%emt 0:00:00]} Kf7 {[%emt 0:00:00]} 51. Kf2 {[%emt 0:00:00]} Na5 {[%emt 0:00:00]} 52. Ke2 {[%emt 0:00:00]} Kf8 {[%emt 0:00:00]} 53. Kd1 {[%emt 0:00:00]} Kf7 {[%emt 0:00:00]} 54. Kc2 {[%emt 0:00:00]} Kf8 {[%emt 0:00:00]} 55. h4 {[%emt 0:00:00]} Kf7 {[%emt 0:00:00]} 56. g5 {[%emt 0:00:00]} hxg5 {[%emt 0:00:00]} 57. hxg5 {[%emt 0:00:00]} g6 {[%emt 0:00:00]} 58. fxg6+ {[%emt 0:00:00]} Kxg6 {[%emt 0:00:00]} 59. Ne7+ {[%emt 0:00:00]} Kf7 {[%emt 0:00:00]} 60. Nf5 {[%emt 0:00:00]} fxg5 {[%emt 0:00:00]} 61. Bxg5 {[%emt 0:00:00]} Ke6 {[%emt 0:00:00]} 1/2-1/2

[Event "Fagernes GM Open Autumn 2024"]
[Site "Fagernes"]
[Date "2024.10.09"]
[Round "4.23"]
[White "Skotheim, Andreas"]
[Black "Bjorkan, Olav"]
[Result "1-0"]
[ECO "D55"]
[WhiteElo "2234"]
[BlackElo "2022"]
[Annotator "RC"]
[PlyCount "127"]
[EventDate "2024.10.03"]
[EventType "swiss"]
[EventCountry "NOR"]
[SourceTitle "playchess.com"]
[Source "ChessBase"]
[SourceQuality "1"]
[TimeControl "40/6000:2400+30"]

1. d4 {[%emt 0:03:17]} d5 {[%emt 0:00:00]} 2. c4 {[%emt 0:00:12]} e6 {[%emt 0:00:00]} 3. Nc3 {[%emt 0:00:09]} Nf6 {[%emt 0:00:00]} 4. cxd5 {[%emt 0:00:00]} exd5 {[%emt 0:00:00]} 5. Bg5 {[%emt 0:00:00]} Be7 {[%emt 0:00:00]} 6. e3 {[%emt 0:00:00]} O-O {[%emt 0:00:00]} 7. Bd3 {[%emt 0:00:00]} b6 {[%emt 0:00:00]} 8. Nf3 {[%emt 0:03:17]} Bb7 {[%emt 0:01:08]} 9. Qc2 {[%emt 0:05:20]} Nbd7 {[%emt 0:01:11]} 10. Bf4 {[%emt 0:07:15]} c5 {[%emt 0:05:32]} 11. O-O {[%emt 0:05:52]} h6 {[%emt 0:07:25]} 12. h3 {[%emt 0:00:37]} a6 {[%emt 0:05:46]} 13. a4 {[%emt 0:02:56]} Nb8 {[%emt 0:04:37]} 14. Bxb8 {[%emt 0:09:15]} Rxb8 {[%emt 0:00:33]} 15. Ne5 {[%emt 0:00:29]} cxd4 {[%emt 0:13:08]} 16. exd4 {[%emt 0:00:10]} Bb4 {[%emt 0:00:00]} 17. Rad1 {[%emt 0:02:22]} Rc8 {[%emt 0:06:09]} 18. Qb3 {[%emt 0:01:13]} Qd6 {[%emt 0:15:10]} 19. Rfe1 {[%emt 0:07:16]} Rc7 {[%emt 0:05:23]} 20. Re3 {[%emt 0:02:13]} Nd7 {[%emt 0:06:14]} 21. Rde1 {[%emt 0:03:11]} Nxe5 {[%emt 0:04:42]} 22. Rxe5 {[%emt 0:00:00]} Bxc3 {[%emt 0:00:16]} 23. bxc3 {[%emt 0:00:00]} Qc6 {[%emt 0:01:40]} 24. R5e3 {[%emt 0:04:20]} Rd8 {[%emt 0:04:01]} 25. Bb1 {[%emt 0:02:56]} b5 {[%emt 0:02:20]} 26. axb5 {[%emt 0:02:29]} axb5 {[%emt 0:00:06]} 27. Qxd5 {[%emt 0:00:42]} Rf8 {[%emt 0:01:55]} 28. Qxc6 {[%emt 0:00:07]} Bxc6 {[%emt 0:00:00]} 29. Re5 {[%emt 0:03:28]} g6 {[%emt 0:00:30]} 30. Rc5 {[%emt 0:01:49]} Rfc8 {[%emt 0:00:11]} 31. Ba2 {[%emt 0:01:02]} Kf8 {[%emt 0:00:10]} 32. Re3 {[%emt 0:05:42]} Bd7 {[%emt 0:00:50]} 33. Rxc7 {[%emt 0:01:41]} Rxc7 {[%emt 0:00:00]} 34. Bd5 {[%emt 0:01:25]} b4 {[%emt 0:01:52]} 35. cxb4 {[%emt 0:05:48]} Rc1+ {[%emt 0:00:00]} 36. Kh2 {[%emt 0:00:00]} Rd1 {[%emt 0:00:00]} 37. Bc4 {[%emt 0:02:34]} Rxd4 {[%emt 0:00:00]} 38. Rc3 {[%emt 0:00:00]} Rd2 {[%emt 0:01:33]} 39. Rd3 {[%emt 0:02:16]} Rc2 {[%emt 0:00:01]} 40. Bb3 {[%emt 0:03:39]} Rb2 {[%emt 0:00:00]} 41. Bxf7 {[%emt 0:43:46]} Bf5 {[%emt 0:41:30]} 42. Rb3 {[%emt 0:01:02]} Rxf2 {[%emt 0:00:25]} 43. Bd5 {[%emt 0:01:02]} Rd2 {[%emt 0:04:29]} 44. Bc6 {[%emt 0:00:00]} Be6 {[%emt 0:00:00]} 45. Ra3 {[%emt 0:00:00]} Bd5 {[%emt 0:00:00]} 46. Bxd5 {[%emt 0:00:00]} Rxd5 {[%emt 0:00:00]} 47. Rb3 {[%emt 0:00:00]} Rb5 {[%emt 0:00:00]} 48. Kg3 {[%emt 0:00:00]} Ke7 {[%emt 0:00:00]} 49. Kf4 {[%emt 0:00:00]} Kd6 {[%emt 0:00:00]} 50. Ke4 {[%emt 0:00:00]} Re5+ {[%emt 0:00:00]} 51. Kd4 {[%emt 0:00:00]} Re2 {[%emt 0:00:00]} 52. b5 {[%emt 0:00:00]} Rd2+ {[%emt 0:00:00]} 53. Kc4 {[%emt 0:00:00]} Rc2+ {[%emt 0:00:00]} 54. Kd4 {[%emt 0:00:00]} Rd2+ {[%emt 0:00:00]} 55. Ke4 {[%emt 0:00:00]} Rxg2 {[%emt 0:00:00]} 56. b6 {[%emt 0:00:00]} Re2+ {[%emt 0:00:00]} 57. Kd4 {[%emt 0:00:00]} Re8 {[%emt 0:00:00]} 58. Rf3 {[%emt 0:00:00]} Rd8 {[%emt 0:00:00]} 59. Rf6+ {[%emt 0:00:00]} Ke7+ {[%emt 0:00:00]} 60. Ke5 {[%emt 0:00:00]} Rd3 {[%emt 0:01:19]} 61. Rxg6 {[%emt 0:00:36]} Rxh3 {[%emt 0:00:44]} 62. Rg7+ {[%emt 0:02:13]} Kd8 {[%emt 0:06:23]} 63. Rg8+ {[%emt 0:01:33]} Kd7 {[%emt 0:00:11]} 64. b7 {[%emt 0:00:07]} 1-0

[Event "Fagernes GM Open Autumn 2024"]
[Site "Fagernes"]
[Date "2024.10.09"]
[Round "4.24"]
[White "Kaewpitakkun, Pantham"]
[Black "Welling, Gerard"]
[Result "1/2-1/2"]
[ECO "C41"]
[WhiteElo "2023"]
[BlackElo "2206"]
[Annotator "RC"]
[PlyCount "78"]
[EventDate "2024.10.03"]
[EventType "swiss"]
[EventCountry "NOR"]
[SourceTitle "playchess.com"]
[Source "ChessBase"]
[SourceQuality "1"]
[TimeControl "40/6000:2400+30"]

1. e4 {[%emt 0:00:00]} d6 {[%emt 0:00:00]} 2. d4 {[%emt 0:00:00]} Nf6 {[%emt 0:00:00]} 3. Nc3 {[%emt 0:00:00]} e5 {[%emt 0:00:00]} 4. Nf3 {[%emt 0:01:18]} Nbd7 {[%emt 0:00:00]} 5. Bc4 {[%emt 0:03:27]} Be7 {[%emt 0:00:00]} 6. O-O {[%emt 0:01:04]} O-O {[%emt 0:00:00]} 7. Re1 {[%emt 0:01:23]} c6 {[%emt 0:00:00]} 8. a4 {[%emt 0:00:20]} a5 {[%emt 0:02:14]} 9. h3 {[%emt 0:01:30]} Qe8 {[%emt 0:02:31]} 10. Qd3 {[%emt 0:02:12]} Bd8 {[%emt 0:00:54]} 11. Be3 {[%emt 0:05:02]} Bc7 {[%emt 0:00:53]} 12. Rad1 {[%emt 0:01:13]} Qe7 {[%emt 0:07:56]} 13. Bg5 {[%emt 0:03:10]} exd4 {[%emt 0:07:33]} 14. Qxd4 {[%emt 0:00:46]} Ne5 {[%emt 0:00:00]} 15. Nxe5 {[%emt 0:07:18]} dxe5 {[%emt 0:00:06]} 16. Qd3 {[%emt 0:00:43]} h6 {[%emt 0:03:14]} 17. Bh4 {[%emt 0:04:22]} g5 {[%emt 0:07:31]} 18. Bg3 {[%emt 0:00:22]} Nh5 {[%emt 0:00:00]} 19. Qf3 {[%emt 0:06:58]} Nf4 {[%emt 0:00:06]} 20. Bxf4 {[%emt 0:00:32]} gxf4 {[%emt 0:00:00]} 21. Nb1 {[%emt 0:01:07]} Qh4 {[%emt 0:01:42]} 22. Nd2 {[%emt 0:01:36]} Kh7 {[%emt 0:04:10]} 23. Kh2 {[%emt 0:02:45]} Bb6 {[%emt 0:06:44]} 24. Rf1 {[%emt 0:02:08]} h5 {[%emt 0:02:04]} 25. Qa3 {[%emt 0:02:12]} Rg8 {[%emt 0:09:01]} 26. Bxf7 {[%emt 0:03:46]} Rg7 {[%emt 0:02:11]} 27. Nf3 {[%emt 0:07:45]} Qf6 {[%emt 0:00:00]} 28. Qb3 {[%emt 0:01:56]} Ba7 {[%emt 0:02:14]} 29. Rd2 {[%emt 0:05:57]} Rxf7 {[%emt 0:05:33]} 30. Ng5+ {[%emt 0:00:00]} Kg7 {[%emt 0:00:00]} 31. Nxf7 {[%emt 0:00:28]} Qxf7 {[%emt 0:00:00]} 32. Qxf7+ {[%emt 0:00:21]} Kxf7 {[%emt 0:00:00]} 33. Rd8 {[%emt 0:00:05]} Rb8 {[%emt 0:00:00]} 34. Rh8 {[%emt 0:02:32]} Kg6 {[%emt 0:00:00]} 35. Re8 {[%emt 0:00:41]} Kf6 {[%emt 0:04:20]} 36. Rf8+ {[%emt 0:00:27]} Kg6 {[%emt 0:00:32]} 37. Re8 {[%emt 0:00:00]} Kf6 {[%emt 0:01:05]} 38. Rf8+ {[%emt 0:00:00]} Kg6 {[%emt 0:02:07]} 39. Re8 {[%emt 0:00:00]} Kf6 {[%emt 0:04:14]} 1/2-1/2

[Event "Fagernes GM Open Autumn 2024"]
[Site "Fagernes"]
[Date "2024.10.09"]
[Round "4.25"]
[White "Gudbrandsen, Gustav"]
[Black "Lien, Sebastian"]
[Result "1-0"]
[ECO "B01"]
[WhiteElo "2197"]
[BlackElo "1911"]
[Annotator "RC"]
[PlyCount "81"]
[EventDate "2024.10.03"]
[EventType "swiss"]
[EventCountry "NOR"]
[SourceTitle "playchess.com"]
[Source "ChessBase"]
[SourceQuality "1"]
[TimeControl "40/6000:2400+30"]

1. e4 {[%emt 0:00:00]} d5 {[%emt 0:00:00]} 2. exd5 {[%emt 0:00:02]} Qxd5 {[%emt 0:00:00]} 3. Nc3 {[%emt 0:00:13]} Qd8 {[%emt 0:00:00]} 4. d4 {[%emt 0:01:42]} Nf6 {[%emt 0:00:00]} 5. Bc4 {[%emt 0:02:13]} g6 {[%emt 0:01:03]} 6. Nf3 {[%emt 0:00:48]} Bg7 {[%emt 0:00:00]} 7. h3 {[%emt 0:00:30]} Nc6 {[%emt 0:00:00]} 8. O-O {[%emt 0:01:39]} O-O {[%emt 0:00:00]} 9. a3 {[%emt 0:02:12]} Bf5 {[%emt 0:02:36]} 10. Be3 {[%emt 0:06:49]} Ne4 {[%emt 0:08:49]} 11. Ne2 {[%emt 0:04:38]} e5 {[%emt 0:10:11]} 12. dxe5 {[%emt 0:08:43]} Nxe5 {[%emt 0:01:10]} 13. Nxe5 {[%emt 0:00:16]} Bxe5 {[%emt 0:00:00]} 14. Nd4 {[%emt 0:06:57]} Nd6 {[%emt 0:01:29]} 15. Bb3 {[%emt 0:02:14]} Rc8 {[%emt 0:06:32]} 16. c3 {[%emt 0:03:42]} Bg7 {[%emt 0:04:12]} 17. Nxf5 {[%emt 0:05:27]} Nxf5 {[%emt 0:00:45]} 18. Bc5 {[%emt 0:09:12]} Re8 {[%emt 0:10:22]} 19. Qf3 {[%emt 0:07:53]} b6 {[%emt 0:00:58]} 20. Rad1 {[%emt 0:06:31]} Qf6 {[%emt 0:00:02]} 21. Rd7 {[%emt 0:04:04]} Ne7 {[%emt 0:02:19]} 22. Qxf6 {[%emt 0:10:48]} Bxf6 {[%emt 0:00:00]} 23. Bd4 {[%emt 0:00:00]} Bxd4 {[%emt 0:06:29]} 24. cxd4 {[%emt 0:00:00]} c6 {[%emt 0:10:42]} 25. Rxa7 {[%emt 0:00:00]} Nd5 {[%emt 0:00:00]} 26. Rc1 {[%emt 0:00:00]} Red8 {[%emt 0:02:16]} 27. Rb7 {[%emt 0:00:14]} b5 {[%emt 0:00:26]} 28. Rc5 {[%emt 0:00:58]} Rb8 {[%emt 0:03:31]} 29. Rxb8 {[%emt 0:00:12]} Rxb8 {[%emt 0:00:00]} 30. Bxd5 {[%emt 0:01:55]} cxd5 {[%emt 0:00:00]} 31. Rxd5 {[%emt 0:00:00]} b4 {[%emt 0:00:00]} 32. a4 {[%emt 0:00:20]} b3 {[%emt 0:00:00]} 33. Rb5 {[%emt 0:00:22]} Ra8 {[%emt 0:00:00]} 34. Rb4 {[%emt 0:00:03]} Kf8 {[%emt 0:00:00]} 35. Kf1 {[%emt 0:00:00]} Ke7 {[%emt 0:00:00]} 36. Ke2 {[%emt 0:00:00]} Rc8 {[%emt 0:00:00]} 37. Ke3 {[%emt 0:00:00]} Ra8 {[%emt 0:00:00]} 38. Kd3 {[%emt 0:00:41]} Kd6 {[%emt 0:00:49]} 39. Kc3 {[%emt 0:00:48]} Re8 {[%emt 0:00:04]} 40. Rb6+ {[%emt 0:00:34]} Kc7 {[%emt 0:01:42]} 41. Rf6 {[%emt 0:40:48]} 1-0

[Event "Fagernes GM Open Autumn 2024"]
[Site "Fagernes"]
[Date "2024.10.09"]
[Round "4.26"]
[White "Sorgjerd, Jan"]
[Black "Aamodt, Peder Marcus"]
[Result "0-1"]
[ECO "E32"]
[WhiteElo "1966"]
[BlackElo "2126"]
[Annotator "RC"]
[PlyCount "92"]
[EventDate "2024.10.03"]
[EventType "swiss"]
[EventCountry "NOR"]
[SourceTitle "playchess.com"]
[Source "ChessBase"]
[SourceQuality "1"]
[TimeControl "40/6000:2400+30"]

1. d4 {[%emt 0:00:00]} Nf6 {[%emt 0:01:33]} 2. c4 {[%emt 0:00:00]} e6 {[%emt 0:00:00]} 3. Nc3 {[%emt 0:00:00]} Bb4 {[%emt 0:00:00]} 4. Qc2 {[%emt 0:00:00]} O-O {[%emt 0:00:00]} 5. a3 {[%emt 0:00:00]} Bxc3+ {[%emt 0:00:00]} 6. Qxc3 {[%emt 0:00:00]} b5 {[%emt 0:00:00]} 7. b3 {[%emt 0:10:08]} bxc4 {[%emt 0:05:22]} 8. bxc4 {[%emt 0:00:36]} c5 {[%emt 0:02:43]} 9. e3 {[%emt 0:02:34]} Bb7 {[%emt 0:09:50]} 10. Nf3 {[%emt 0:01:22]} Nc6 {[%emt 0:10:57]} 11. Be2 {[%emt 0:09:35]} cxd4 {[%emt 0:06:37]} 12. exd4 {[%emt 0:00:43]} Ne4 {[%emt 0:00:00]} 13. Qc2 {[%emt 0:01:48]} Qa5+ {[%emt 0:00:00]} 14. Kf1 {[%emt 0:09:01]} d5 {[%emt 0:01:41]} 15. Bb2 {[%emt 0:13:14]} Rac8 {[%emt 0:09:35]} 16. Rc1 {[%emt 0:05:03]} Ne7 {[%emt 0:02:27]} 17. c5 {[%emt 0:01:22]} Ng6 {[%emt 0:02:48]} 18. g3 {[%emt 0:00:11]} f5 {[%emt 0:00:43]} 19. Kg2 {[%emt 0:01:59]} f4 {[%emt 0:01:23]} 20. g4 {[%emt 0:10:56]} Bc6 {[%emt 0:04:56]} 21. Bd3 {[%emt 0:04:02]} Rb8 {[%emt 0:03:57]} 22. Rb1 {[%emt 0:02:52]} Rb7 {[%emt 0:05:31]} 23. Bc1 {[%emt 0:01:50]} Rxb1 {[%emt 0:05:37]} 24. Qxb1 {[%emt 0:00:00]} e5 {[%emt 0:00:21]} 25. Qb4 {[%emt 0:04:28]} Qc7 {[%emt 0:00:15]} 26. h4 {[%emt 0:00:58]} Qd7 {[%emt 0:00:00]} 27. Be2 {[%emt 0:03:14]} Qxg4+ {[%emt 0:00:25]} 28. Kf1 {[%emt 0:00:00]} Ng3+ {[%emt 0:03:54]} 29. fxg3 {[%emt 0:00:00]} fxg3 {[%emt 0:00:00]} 30. Ke1 {[%emt 0:01:58]} g2 {[%emt 0:00:00]} 31. Rg1 {[%emt 0:00:00]} Qg3+ {[%emt 0:00:16]} 32. Kd1 {[%emt 0:00:42]} Qf2 {[%emt 0:05:37]} 33. Qe1 {[%emt 0:01:27]} Ba4+ {[%emt 0:00:00]} 34. Kd2 {[%emt 0:00:00]} Rxf3 {[%emt 0:00:01]} 35. Qxf2 {[%emt 0:00:00]} Rxf2 {[%emt 0:00:00]} 36. Ke3 {[%emt 0:00:00]} Rf4 {[%emt 0:00:00]} 37. dxe5 {[%emt 0:00:45]} Re4+ {[%emt 0:00:00]} 38. Kf2 {[%emt 0:02:10]} Nxh4 {[%emt 0:00:00]} 39. Bf3 {[%emt 0:04:07]} Nxf3 {[%emt 0:00:02]} 40. Kxf3 {[%emt 0:00:00]} Rxe5 {[%emt 0:00:00]} 41. Rxg2 {[%emt 0:40:12]} d4 {[%emt 0:40:29]} 42. Rd2 {[%emt 0:03:11]} Bc6+ {[%emt 0:01:20]} 43. Kf4 {[%emt 0:00:00]} Re4+ {[%emt 0:00:51]} 44. Kf5 {[%emt 0:00:12]} Kf7 {[%emt 0:01:05]} 45. Kg5 {[%emt 0:00:00]} h6+ {[%emt 0:00:00]} 46. Kh5 {[%emt 0:00:00]} Rf4 {[%emt 0:00:00]} 0-1

[Event "Fagernes GM Open Autumn 2024"]
[Site "Fagernes"]
[Date "2024.10.09"]
[Round "4.27"]
[White "Kanyamarala, Trisha"]
[Black "Stromhaug, Kristoffer Wang"]
[Result "1/2-1/2"]
[ECO "E11"]
[WhiteElo "2160"]
[BlackElo "1960"]
[Annotator "RC"]
[PlyCount "43"]
[EventDate "2024.10.03"]
[EventType "swiss"]
[EventCountry "NOR"]
[SourceTitle "playchess.com"]
[Source "ChessBase"]
[SourceQuality "1"]
[TimeControl "40/6000:2400+30"]

1. d4 {[%emt 0:00:00]} Nf6 {[%emt 0:00:00]} 2. c4 {[%emt 0:00:00]} e6 {[%emt 0:00:00]} 3. Nf3 {[%emt 0:00:00]} Bb4+ {[%emt 0:00:00]} 4. Nbd2 {[%emt 0:00:00]} Nc6 {[%emt 0:11:49]} 5. a3 {[%emt 0:05:22]} Bxd2+ {[%emt 0:00:12]} 6. Bxd2 {[%emt 0:00:00]} d6 {[%emt 0:00:05]} 7. Bg5 {[%emt 0:04:15]} Qe7 {[%emt 0:08:22]} 8. e3 {[%emt 0:02:14]} e5 {[%emt 0:04:13]} 9. Be2 {[%emt 0:01:55]} h6 {[%emt 0:04:51]} 10. Bxf6 {[%emt 0:12:22]} Qxf6 {[%emt 0:00:53]} 11. O-O {[%emt 0:00:23]} O-O {[%emt 0:01:27]} 12. h3 {[%emt 0:07:56]} a5 {[%emt 0:11:35]} 13. b3 {[%emt 0:02:24]} Bf5 {[%emt 0:04:49]} 14. Rc1 {[%emt 0:04:28]} Rad8 {[%emt 0:02:20]} 15. Qd2 {[%emt 0:09:18]} b6 {[%emt 0:07:13]} 16. Qc3 {[%emt 0:06:29]} Rfe8 {[%emt 0:05:37]} 17. Rfd1 {[%emt 0:09:16]} exd4 {[%emt 0:10:00]} 18. Nxd4 {[%emt 0:00:00]} Nxd4 {[%emt 0:00:00]} 19. Rxd4 {[%emt 0:00:14]} Be4 {[%emt 0:00:38]} 20. Bd3 {[%emt 0:04:17]} Bb7 {[%emt 0:02:58]} 21. Bb1 {[%emt 0:01:37]} c5 {[%emt 0:00:18]} 22. Rg4 {[%emt 0:09:33]} 1/2-1/2